[Event "Live Chess"]
[Site "Chess.com"]
[Date "2023.05.20"]
[Round "-"]
[White "thrithik"]
[Black "chessfiction"]
[Result "0-1"]
[WhiteElo "455"]
[BlackElo "2412"]
[TimeControl "300"]
[EndTime "12:08:56 PDT"]
[Termination "chessfiction won by checkmate"]

1. a3 {[%clk 0:04:58]} 1... e5 {[%clk 0:04:58.8]} 2. b3 {[%clk 0:04:57.6]} 2...
Bc5 {[%clk 0:04:57.9]} 3. c3 {[%clk 0:04:55.7]} 3... Qf6 {[%clk 0:04:55.8]} 4.
d4 {[%clk 0:04:55.3]} 4... exd4 {[%clk 0:04:54.6]} 5. cxd4 {[%clk 0:04:52.9]}
5... Bxd4 {[%clk 0:04:54.5]} 6. Bb2 {[%clk 0:04:49]} 6... Qxf2+ {[%clk
0:04:52.3]} 7. Kd2 {[%clk 0:04:43]} 7... Bxb2 {[%clk 0:04:50.5]} 8. Ra2 {[%clk
0:04:40.2]} 8... Bf6 {[%clk 0:04:47]} 9. Qe1 {[%clk 0:04:33.9]} 9... Bg5+ {[%clk
0:04:43.7]} 10. Kd1 {[%clk 0:04:29.2]} 10... Qd4+ {[%clk 0:04:42.4]} 11. Nd2
{[%clk 0:04:21.6]} 11... d5 {[%clk 0:04:40.2]} 12. Qg3 {[%clk 0:04:13.3]} 12...
Bg4 {[%clk 0:04:34.2]} 13. Qxc7 {[%clk 0:04:06.2]} 13... Nc6 {[%clk 0:04:22.5]}
14. Qxb7 {[%clk 0:04:00.5]} 14... Rc8 {[%clk 0:04:21.5]} 15. Qxa7 {[%clk
0:03:49]} 15... Qxa7 {[%clk 0:04:19.3]} 16. Ne4 {[%clk 0:03:40.2]} 16... Qd4+
{[%clk 0:04:18]} 17. Nd2 {[%clk 0:03:37.5]} 17... Nf6 {[%clk 0:04:09.6]} 18. Rc2
{[%clk 0:03:33.1]} 18... O-O {[%clk 0:04:07.2]} 19. Ke1 {[%clk 0:03:22.9]} 19...
Qa1+ {[%clk 0:04:05.1]} 20. Rc1 {[%clk 0:03:12.8]} 20... Qxc1+ {[%clk
0:04:02.7]} 21. Kf2 {[%clk 0:03:07.5]} 21... Qxd2 {[%clk 0:04:02.6]} 22. Nf3
{[%clk 0:02:58.2]} 22... Ne4+ {[%clk 0:04:02.5]} 23. Kg1 {[%clk 0:02:48.3]}
23... Qe3# {[%clk 0:04:02.4]} 0-1

[Event "Live Chess"]
[Site "Chess.com"]
[Date "2023.05.20"]
[Round "-"]
[White "BillythekidFellowes"]
[Black "LiamBellwood"]
[Result "1-0"]
[WhiteElo "2047"]
[BlackElo "2063"]
[TimeControl "300"]
[EndTime "12:09:01 PDT"]
[Termination "BillythekidFellowes won by checkmate"]

1. c4 {[%clk 0:04:58.1]} 1... e6 {[%clk 0:04:59.9]} 2. Nc3 {[%clk 0:04:56.2]}
2... f5 {[%clk 0:04:59.8]} 3. d4 {[%clk 0:04:51]} 3... Nf6 {[%clk 0:04:58.6]} 4.
Bg5 {[%clk 0:04:43.9]} 4... Bb4 {[%clk 0:04:57.1]} 5. a3 {[%clk 0:04:42.2]} 5...
Bxc3+ {[%clk 0:04:54.6]} 6. bxc3 {[%clk 0:04:42.1]} 6... h6 {[%clk 0:04:54.2]}
7. Bxf6 {[%clk 0:04:37.3]} 7... Qxf6 {[%clk 0:04:54.1]} 8. e3 {[%clk 0:04:34.6]}
8... O-O {[%clk 0:04:52.8]} 9. Nf3 {[%clk 0:04:29]} 9... b6 {[%clk 0:04:51.9]}
10. Be2 {[%clk 0:04:24]} 10... Bb7 {[%clk 0:04:51.4]} 11. Rb1 {[%clk 0:04:19.3]}
11... d6 {[%clk 0:04:49.6]} 12. O-O {[%clk 0:04:06.7]} 12... Nd7 {[%clk
0:04:49.1]} 13. Qa4 {[%clk 0:03:56.8]} 13... Rf7 {[%clk 0:04:43.2]} 14. Rfd1
{[%clk 0:03:50]} 14... e5 {[%clk 0:04:37.9]} 15. dxe5 {[%clk 0:03:43.2]} 15...
Nxe5 {[%clk 0:04:35]} 16. Nxe5 {[%clk 0:03:39.9]} 16... dxe5 {[%clk 0:04:27]}
17. c5 {[%clk 0:03:38.9]} 17... Qg5 {[%clk 0:04:15.9]} 18. c6 {[%clk 0:03:34.7]}
18... Bc8 {[%clk 0:04:03.2]} 19. Bc4 {[%clk 0:03:32.5]} 19... f4 {[%clk
0:03:59]} 20. Qb3 {[%clk 0:03:06.2]} 20... f3 {[%clk 0:03:41.1]} 21. Bxf7+
{[%clk 0:03:01.6]} 21... Kh7 {[%clk 0:03:39.8]} 22. g3 {[%clk 0:02:57.1]} 22...
Qf5 {[%clk 0:03:18.9]} 23. Bc4 {[%clk 0:02:46.9]} 23... a5 {[%clk 0:03:08.2]}
24. Qa4 {[%clk 0:02:34.6]} 24... Ba6 {[%clk 0:02:57.6]} 25. Bxa6 {[%clk
0:02:23.9]} 25... Rxa6 {[%clk 0:02:57.5]} 26. Qc4 {[%clk 0:02:21.7]} 26... Ra8
{[%clk 0:02:49.1]} 27. Rb5 {[%clk 0:02:10.7]} 27... Qh3 {[%clk 0:02:13.6]} 28.
Qf1 {[%clk 0:02:06.4]} 28... Qe6 {[%clk 0:02:13.2]} 29. Rdd5 {[%clk 0:01:43.6]}
29... e4 {[%clk 0:02:05.1]} 30. Re5 {[%clk 0:01:37.9]} 30... Qxc6 {[%clk
0:02:02.6]} 31. Qb1 {[%clk 0:01:34.1]} 31... Re8 {[%clk 0:01:32.5]} 32. Rbd5
{[%clk 0:01:08.5]} 32... Rxe5 {[%clk 0:01:05]} 33. Rxe5 {[%clk 0:01:08.4]} 33...
Qxc3 {[%clk 0:01:04.9]} 34. Qxe4+ {[%clk 0:01:00.2]} 34... Kg8 {[%clk
0:01:04.1]} 35. Re8+ {[%clk 0:00:55.1]} 35... Kf7 {[%clk 0:00:59.5]} 36. Qe6#
{[%clk 0:00:55]} 1-0

[Event "Live Chess"]
[Site "Chess.com"]
[Date "2023.05.20"]
[Round "-"]
[White "mightysmasher"]
[Black "Judgen68"]
[Result "1-0"]
[WhiteElo "2115"]
[BlackElo "1276"]
[TimeControl "300"]
[EndTime "12:09:01 PDT"]
[Termination "mightysmasher won on time"]

1. e4 {[%clk 0:04:58.4]} 1... Nf6 {[%clk 0:04:55.8]} 2. e5 {[%clk 0:04:51.6]}
2... Nd5 {[%clk 0:04:52.8]} 3. c4 {[%clk 0:04:51]} 3... Nb6 {[%clk 0:04:51]} 4.
d4 {[%clk 0:04:50.4]} 4... d6 {[%clk 0:04:49.1]} 5. Nf3 {[%clk 0:04:49.6]} 5...
g6 {[%clk 0:04:44.7]} 6. Nc3 {[%clk 0:04:47.8]} 6... Bg7 {[%clk 0:04:43.2]} 7.
Be2 {[%clk 0:04:47.2]} 7... O-O {[%clk 0:04:38.3]} 8. O-O {[%clk 0:04:45.4]}
8... dxe5 {[%clk 0:04:26.3]} 9. d5 {[%clk 0:04:44]} 9... Bg4 {[%clk 0:04:13.1]}
10. c5 {[%clk 0:04:37.3]} 10... N6d7 {[%clk 0:04:09.1]} 11. d6 {[%clk
0:04:32.7]} 11... exd6 {[%clk 0:04:06.6]} 12. cxd6 {[%clk 0:04:30.9]} 12... cxd6
{[%clk 0:04:01.4]} 13. Qxd6 {[%clk 0:04:28.3]} 13... Qb6 {[%clk 0:03:59.5]} 14.
Qxb6 {[%clk 0:04:24.7]} 14... Nxb6 {[%clk 0:03:57.5]} 15. Be3 {[%clk 0:04:23.3]}
15... Nc6 {[%clk 0:03:53.5]} 16. h3 {[%clk 0:04:20.3]} 16... Be6 {[%clk
0:03:45.8]} 17. Rad1 {[%clk 0:04:16]} 17... Rfd8 {[%clk 0:03:42.9]} 18. Nb5
{[%clk 0:04:11.4]} 18... Bxa2 {[%clk 0:03:31.8]} 19. Rxd8+ {[%clk 0:04:06]}
19... Rxd8 {[%clk 0:03:29.3]} 20. Nxa7 {[%clk 0:04:04.4]} 20... Nc4 {[%clk
0:02:58.9]} 21. Nxc6 {[%clk 0:03:58.1]} 21... bxc6 {[%clk 0:02:57.1]} 22. Bxc4
{[%clk 0:03:57.3]} 22... Bxc4 {[%clk 0:02:55.5]} 23. Rc1 {[%clk 0:03:56]} 23...
Bd5 {[%clk 0:02:50.3]} 24. Nd2 {[%clk 0:03:54.3]} 24... Rb8 {[%clk 0:02:46.2]}
25. Nc4 {[%clk 0:03:52]} 25... f5 {[%clk 0:02:36.4]} 26. Na5 {[%clk 0:03:48.4]}
26... Rxb2 {[%clk 0:02:25.4]} 27. Nxc6 {[%clk 0:03:45.8]} 27... f4 {[%clk
0:02:07.2]} 28. Ne7+ {[%clk 0:03:43.2]} 28... Kf8 {[%clk 0:02:01.5]} 29. Nxd5
{[%clk 0:03:41.7]} 29... fxe3 {[%clk 0:01:59.3]} 30. Nxe3 {[%clk 0:03:40.9]}
30... Rb8 {[%clk 0:01:30.5]} 31. g3 {[%clk 0:03:36.5]} 31... Bh6 {[%clk
0:01:26.7]} 32. Rc3 {[%clk 0:03:28.6]} 32... Bxe3 {[%clk 0:01:21.2]} 33. Rxe3
{[%clk 0:03:27]} 33... Rb5 {[%clk 0:01:20.2]} 34. Kg2 {[%clk 0:03:26]} 34... Kf7
{[%clk 0:01:12.1]} 35. Kf3 {[%clk 0:03:24.3]} 35... Kf6 {[%clk 0:01:10.4]} 36.
g4 {[%clk 0:03:22.1]} 36... Rb6 {[%clk 0:01:07.6]} 37. Ke4 {[%clk 0:03:18.7]}
37... Rb4+ {[%clk 0:01:02.5]} 38. Kd5 {[%clk 0:03:17.5]} 38... Rb2 {[%clk
0:00:56.6]} 39. Rf3+ {[%clk 0:03:15.7]} 39... Ke7 {[%clk 0:00:49.9]} 40. Kxe5
{[%clk 0:03:14.2]} 40... Re2+ {[%clk 0:00:48.7]} 41. Kf4 {[%clk 0:03:13]} 41...
Ke6 {[%clk 0:00:45.9]} 42. Kg5 {[%clk 0:03:11.6]} 42... Re5+ {[%clk 0:00:38.6]}
43. Kh6 {[%clk 0:03:10]} 43... Rh5+ {[%clk 0:00:27]} 44. gxh5 {[%clk 0:03:08.4]}
1-0

[Event "Live Chess"]
[Site "Chess.com"]
[Date "2023.05.20"]
[Round "-"]
[White "JoshMcK"]
[Black "onemoretime1975"]
[Result "0-1"]
[WhiteElo "1551"]
[BlackElo "1927"]
[TimeControl "300"]
[EndTime "12:09:01 PDT"]
[Termination "onemoretime1975 won by resignation"]

1. e4 {[%clk 0:04:58.3]} 1... e5 {[%clk 0:04:58]} 2. Nf3 {[%clk 0:04:57.1]} 2...
d6 {[%clk 0:04:56.9]} 3. d4 {[%clk 0:04:54.8]} 3... exd4 {[%clk 0:04:55.1]} 4.
Nxd4 {[%clk 0:04:53.9]} 4... Nf6 {[%clk 0:04:53.8]} 5. Nc3 {[%clk 0:04:52.8]}
5... Nc6 {[%clk 0:04:52.3]} 6. Bf4 {[%clk 0:04:47.1]} 6... Nxd4 {[%clk
0:04:49.7]} 7. Qxd4 {[%clk 0:04:47]} 7... Be7 {[%clk 0:04:48.1]} 8. O-O-O {[%clk
0:04:36]} 8... O-O {[%clk 0:04:46]} 9. e5 {[%clk 0:04:32.5]} 9... Ne8 {[%clk
0:04:26]} 10. Nd5 {[%clk 0:04:23.7]} 10... Bg5 {[%clk 0:04:21.5]} 11. exd6
{[%clk 0:04:17.3]} 11... cxd6 {[%clk 0:04:14.7]} 12. Bxg5 {[%clk 0:03:59.1]}
12... Qxg5+ {[%clk 0:04:12.2]} 13. Kb1 {[%clk 0:03:57.1]} 13... Be6 {[%clk
0:04:07.6]} 14. Ne3 {[%clk 0:03:47.6]} 14... Qa5 {[%clk 0:03:59.3]} 15. Bc4
{[%clk 0:03:40.9]} 15... d5 {[%clk 0:03:51.1]} 16. Bb3 {[%clk 0:03:29.2]} 16...
Nf6 {[%clk 0:03:41.5]} 17. Nxd5 {[%clk 0:03:21.4]} 17... Nxd5 {[%clk 0:03:37.1]}
18. Bxd5 {[%clk 0:03:12.3]} 18... Rad8 {[%clk 0:03:35.4]} 19. Qc4 {[%clk
0:02:40]} 19... Bxd5 {[%clk 0:03:31.6]} 20. Rxd5 {[%clk 0:02:38.3]} 20... Qxd5
{[%clk 0:03:29.7]} 21. Qxd5 {[%clk 0:02:35.3]} 21... Rxd5 {[%clk 0:03:27.7]} 22.
b3 {[%clk 0:02:35.2]} 22... Rfd8 {[%clk 0:03:25.4]} 0-1

[Event "Live Chess"]
[Site "Chess.com"]
[Date "2023.05.20"]
[Round "-"]
[White "flyingpuffins"]
[Black "domrobson"]
[Result "1-0"]
[WhiteElo "1968"]
[BlackElo "1757"]
[TimeControl "300"]
[EndTime "12:09:02 PDT"]
[Termination "flyingpuffins won by resignation"]

1. e4 {[%clk 0:04:58.5]} 1... e5 {[%clk 0:04:59.4]} 2. Nc3 {[%clk 0:04:56.9]}
2... Nf6 {[%clk 0:04:58.9]} 3. Bc4 {[%clk 0:04:55.3]} 3... Nxe4 {[%clk
0:04:56.8]} 4. Qh5 {[%clk 0:04:52.6]} 4... Nd6 {[%clk 0:04:56.3]} 5. Bb3 {[%clk
0:04:45.4]} 5... Na6 {[%clk 0:04:42.8]} 6. Qxe5+ {[%clk 0:04:42]} 6... Qe7
{[%clk 0:04:41.6]} 7. Qxe7+ {[%clk 0:04:40.4]} 7... Bxe7 {[%clk 0:04:40.4]} 8.
Nf3 {[%clk 0:04:38.4]} 8... O-O {[%clk 0:04:39.1]} 9. O-O {[%clk 0:04:37.2]}
9... c6 {[%clk 0:04:36.2]} 10. d4 {[%clk 0:04:29.8]} 10... Bf6 {[%clk 0:04:34]}
11. Bf4 {[%clk 0:04:27.8]} 11... Ne8 {[%clk 0:04:29.7]} 12. d5 {[%clk 0:04:26]}
12... Nc5 {[%clk 0:04:23]} 13. Bc4 {[%clk 0:04:13.6]} 13... b5 {[%clk
0:04:21.2]} 14. Bd3 {[%clk 0:04:12.5]} 14... Bb7 {[%clk 0:04:18.6]} 15. dxc6
{[%clk 0:04:06.5]} 15... Bxc6 {[%clk 0:04:13.7]} 16. Bxb5 {[%clk 0:04:04.1]}
16... Bxc3 {[%clk 0:04:10.9]} 17. Bxc6 {[%clk 0:04:01.1]} 17... dxc6 {[%clk
0:04:01.7]} 18. bxc3 {[%clk 0:03:59.7]} 18... Nf6 {[%clk 0:03:59.8]} 19. Bd6
{[%clk 0:03:57.2]} 1-0

[Event "Live Chess"]
[Site "Chess.com"]
[Date "2023.05.20"]
[Round "-"]
[White "Brooms1989"]
[Black "EdenHazard8"]
[Result "0-1"]
[WhiteElo "1005"]
[BlackElo "2090"]
[TimeControl "300"]
[EndTime "12:09:05 PDT"]
[Termination "EdenHazard8 won by checkmate"]

1. e4 {[%clk 0:04:56.2]} 1... c6 {[%clk 0:04:58.6]} 2. d4 {[%clk 0:04:54.3]}
2... d5 {[%clk 0:04:58.3]} 3. f3 {[%clk 0:04:54]} 3... Nd7 {[%clk 0:04:56.7]} 4.
Bd3 {[%clk 0:04:49.9]} 4... e5 {[%clk 0:04:55.6]} 5. Ne2 {[%clk 0:04:47.1]} 5...
Ngf6 {[%clk 0:04:54.2]} 6. dxe5 {[%clk 0:04:45.2]} 6... Nxe5 {[%clk 0:04:53.2]}
7. O-O {[%clk 0:04:44]} 7... Bc5+ {[%clk 0:04:49.5]} 8. Kh1 {[%clk 0:04:42.6]}
8... O-O {[%clk 0:04:48.2]} 9. Bf4 {[%clk 0:04:26.4]} 9... Ng6 {[%clk 0:04:46]}
10. Bg3 {[%clk 0:04:24.9]} 10... Be6 {[%clk 0:04:41.1]} 11. e5 {[%clk
0:04:12.5]} 11... Nh5 {[%clk 0:04:29.1]} 12. Bf2 {[%clk 0:04:00]} 12... Bxf2
{[%clk 0:04:24.3]} 13. Rxf2 {[%clk 0:03:59.9]} 13... Qh4 {[%clk 0:04:21.2]} 14.
g3 {[%clk 0:03:53.3]} 14... Qb4 {[%clk 0:04:14]} 15. b3 {[%clk 0:03:39.7]} 15...
Nxe5 {[%clk 0:04:09.4]} 16. Nd2 {[%clk 0:03:35.5]} 16... Nxd3 {[%clk 0:04:06.7]}
17. cxd3 {[%clk 0:03:34.4]} 17... Rae8 {[%clk 0:04:03.7]} 18. a3 {[%clk
0:03:04.5]} 18... Qb6 {[%clk 0:03:59.1]} 19. Rg2 {[%clk 0:02:55.6]} 19... Qe3
{[%clk 0:03:55.2]} 20. g4 {[%clk 0:02:30.3]} 20... Nf6 {[%clk 0:03:40.5]} 21.
Ng3 {[%clk 0:01:50.8]} 21... Qxd3 {[%clk 0:03:35.9]} 22. b4 {[%clk 0:01:14.4]}
22... d4 {[%clk 0:03:23.9]} 23. Nf5 {[%clk 0:00:53.8]} 23... Bxf5 {[%clk
0:03:14.5]} 24. gxf5 {[%clk 0:00:52.6]} 24... Qxf5 {[%clk 0:03:13.6]} 25. Qg1
{[%clk 0:00:52]} 25... g6 {[%clk 0:03:09.9]} 26. Nf1 {[%clk 0:00:33.8]} 26...
Qxf3 {[%clk 0:03:03.6]} 27. Ng3 {[%clk 0:00:30.8]} 27... Ng4 {[%clk 0:02:58.2]}
28. Rf1 {[%clk 0:00:25.5]} 28... Qd5 {[%clk 0:02:53.2]} 29. Ne2 {[%clk
0:00:15.3]} 29... Rxe2 {[%clk 0:02:51.2]} 30. Rf2 {[%clk 0:00:12.4]} 30... Nxf2+
{[%clk 0:02:47.2]} 31. Qxf2 {[%clk 0:00:12.3]} 31... Rxf2 {[%clk 0:02:46.4]} 32.
Kg1 {[%clk 0:00:11.2]} 32... Qxg2# {[%clk 0:02:45.7]} 0-1

[Event "Live Chess"]
[Site "Chess.com"]
[Date "2023.05.20"]
[Round "-"]
[White "Demyan7777"]
[Black "jennybobby44"]
[Result "1-0"]
[WhiteElo "1664"]
[BlackElo "1876"]
[TimeControl "300"]
[EndTime "12:09:15 PDT"]
[Termination "Demyan7777 won by checkmate"]

1. e4 {[%clk 0:04:57.3]} 1... c5 {[%clk 0:04:59.2]} 2. Nf3 {[%clk 0:04:55.1]}
2... d6 {[%clk 0:04:57.9]} 3. d4 {[%clk 0:04:54.3]} 3... cxd4 {[%clk 0:04:57.8]}
4. Nxd4 {[%clk 0:04:53.9]} 4... Nf6 {[%clk 0:04:57.4]} 5. Nc3 {[%clk 0:04:53.3]}
5... a6 {[%clk 0:04:55.3]} 6. Be3 {[%clk 0:04:52.2]} 6... e5 {[%clk 0:04:54.5]}
7. Nb3 {[%clk 0:04:49.4]} 7... Be6 {[%clk 0:04:53.8]} 8. Be2 {[%clk 0:04:47.7]}
8... Be7 {[%clk 0:04:52.4]} 9. Qd2 {[%clk 0:04:46.8]} 9... Qc7 {[%clk
0:04:51.4]} 10. O-O {[%clk 0:04:44.9]} 10... b5 {[%clk 0:04:50.3]} 11. f4 {[%clk
0:04:39.5]} 11... Nbd7 {[%clk 0:04:20.5]} 12. f5 {[%clk 0:04:35.8]} 12... Bxb3
{[%clk 0:04:15.7]} 13. axb3 {[%clk 0:04:35.4]} 13... Nb6 {[%clk 0:03:42.8]} 14.
g4 {[%clk 0:04:18.1]} 14... b4 {[%clk 0:03:18.1]} 15. Nd5 {[%clk 0:04:12.6]}
15... Nfxd5 {[%clk 0:03:12.7]} 16. exd5 {[%clk 0:04:10.5]} 16... a5 {[%clk
0:02:47.8]} 17. Bf3 {[%clk 0:04:07.8]} 17... f6 {[%clk 0:02:38.3]} 18. Qf2
{[%clk 0:04:02.3]} 18... Nd7 {[%clk 0:02:37.3]} 19. Rfc1 {[%clk 0:03:58]} 19...
Qb7 {[%clk 0:02:24.5]} 20. c3 {[%clk 0:03:50.2]} 20... Nc5 {[%clk 0:02:08.5]}
21. Bxc5 {[%clk 0:03:48.1]} 21... dxc5 {[%clk 0:02:05.3]} 22. d6 {[%clk
0:03:46.6]} 22... e4 {[%clk 0:02:01.4]} 23. Re1 {[%clk 0:03:37.9]} 23... exf3
{[%clk 0:01:34.5]} 24. Rxe7+ {[%clk 0:03:35.2]} 24... Qxe7 {[%clk 0:01:33.7]}
25. dxe7 {[%clk 0:03:34.2]} 25... Rc8 {[%clk 0:01:28.8]} 26. Re1 {[%clk
0:03:31.5]} 26... Kf7 {[%clk 0:01:27.8]} 27. Qxf3 {[%clk 0:03:29.6]} 27... Rhe8
{[%clk 0:01:24.1]} 28. Qd5# {[%clk 0:03:28.1]} 1-0

[Event "Live Chess"]
[Site "Chess.com"]
[Date "2023.05.20"]
[Round "-"]
[White "Duke_of_Bebington"]
[Black "OleksiyJr1"]
[Result "1-0"]
[WhiteElo "1574"]
[BlackElo "933"]
[TimeControl "300"]
[EndTime "12:09:17 PDT"]
[Termination "Duke_of_Bebington won by resignation"]

1. e4 {[%clk 0:04:57.8]} 1... c5 {[%clk 0:04:59.7]} 2. c3 {[%clk 0:04:56.4]}
2... Nc6 {[%clk 0:04:59.3]} 3. d4 {[%clk 0:04:55.1]} 3... cxd4 {[%clk 0:04:58]}
4. cxd4 {[%clk 0:04:55]} 4... d5 {[%clk 0:04:55.9]} 5. exd5 {[%clk 0:04:39.6]}
5... Qxd5 {[%clk 0:04:55.8]} 6. Nc3 {[%clk 0:04:33.2]} 6... Qxd4 {[%clk
0:04:53.3]} 7. Be3 {[%clk 0:04:23.3]} 7... Qxd1+ {[%clk 0:04:51.7]} 8. Rxd1
{[%clk 0:04:22.8]} 8... Nf6 {[%clk 0:04:47.9]} 9. Nb5 {[%clk 0:04:16.3]} 9...
Bd7 {[%clk 0:04:00.1]} 10. Nc7+ {[%clk 0:04:11.4]} 10... Kd8 {[%clk 0:03:59.3]}
11. Nxa8 {[%clk 0:04:10.1]} 11... e6 {[%clk 0:03:57.8]} 12. Bb5 {[%clk
0:03:52.2]} 12... Bb4+ {[%clk 0:03:52.8]} 13. Kf1 {[%clk 0:03:48]} 13... Ke7
{[%clk 0:03:50.1]} 14. Nc7 {[%clk 0:03:43.3]} 14... a6 {[%clk 0:03:39.4]} 15.
Bxa6 {[%clk 0:03:30.9]} 15... Na7 {[%clk 0:03:27.8]} 16. Bxb7 {[%clk 0:03:20.8]}
16... Nd5 {[%clk 0:03:14.1]} 17. Bxd5 {[%clk 0:03:09.2]} 17... exd5 {[%clk
0:03:10.1]} 18. Nxd5+ {[%clk 0:03:06.7]} 18... Ke6 {[%clk 0:03:03.3]} 19. Nxb4
{[%clk 0:03:04]} 19... Bb5+ {[%clk 0:02:58.7]} 20. Ne2 {[%clk 0:03:00.7]} 1-0

[Event "Live Chess"]
[Site "Chess.com"]
[Date "2023.05.20"]
[Round "-"]
[White "MartinWalker4"]
[Black "LL220284LL"]
[Result "0-1"]
[WhiteElo "2074"]
[BlackElo "2395"]
[TimeControl "300"]
[EndTime "12:09:20 PDT"]
[Termination "LL220284LL won by resignation"]

1. e4 {[%clk 0:04:56.8]} 1... d5 {[%clk 0:04:56.3]} 2. exd5 {[%clk 0:04:54.4]}
2... Qxd5 {[%clk 0:04:56.2]} 3. Nc3 {[%clk 0:04:52.4]} 3... Qa5 {[%clk 0:04:55]}
4. d4 {[%clk 0:04:49.2]} 4... c6 {[%clk 0:04:54.1]} 5. Nf3 {[%clk 0:04:47.5]}
5... Nf6 {[%clk 0:04:53.1]} 6. Ne5 {[%clk 0:04:45.6]} 6... Nbd7 {[%clk
0:04:45.7]} 7. f4 {[%clk 0:04:44.1]} 7... e6 {[%clk 0:04:41.4]} 8. Be2 {[%clk
0:04:35.9]} 8... Bd6 {[%clk 0:04:39.7]} 9. O-O {[%clk 0:04:33.8]} 9... O-O
{[%clk 0:04:38.1]} 10. Nc4 {[%clk 0:04:31.7]} 10... Qc7 {[%clk 0:04:36.1]} 11.
Nxd6 {[%clk 0:04:19.4]} 11... Qxd6 {[%clk 0:04:36]} 12. Be3 {[%clk 0:04:17.6]}
12... Nd5 {[%clk 0:04:31.6]} 13. Nxd5 {[%clk 0:04:14.7]} 13... exd5 {[%clk
0:04:29.6]} 14. Bf3 {[%clk 0:04:11.6]} 14... Nf6 {[%clk 0:04:26.4]} 15. Qd2
{[%clk 0:04:07.2]} 15... Re8 {[%clk 0:04:22.7]} 16. Rfe1 {[%clk 0:04:05.5]}
16... Bf5 {[%clk 0:04:16.5]} 17. Bf2 {[%clk 0:03:52.2]} 17... Be4 {[%clk
0:04:06.3]} 18. Kh1 {[%clk 0:03:26.8]} 18... Bxf3 {[%clk 0:04:02.2]} 19. gxf3
{[%clk 0:03:25.7]} 19... Qd7 {[%clk 0:03:58.8]} 20. Re5 {[%clk 0:03:17.4]} 20...
Qh3 {[%clk 0:03:54.9]} 21. Qe2 {[%clk 0:03:15.6]} 21... Kf8 {[%clk 0:03:49.2]}
22. Re1 {[%clk 0:03:12.3]} 22... Qd7 {[%clk 0:03:45.1]} 23. Bh4 {[%clk 0:02:48]}
23... Ng8 {[%clk 0:03:42.7]} 24. f5 {[%clk 0:02:23]} 24... f6 {[%clk 0:03:40]}
25. Re6 {[%clk 0:02:21.4]} 25... Ne7 {[%clk 0:03:34.7]} 26. Bxf6 {[%clk
0:02:07.2]} 26... Nxf5 {[%clk 0:03:19.4]} 27. Rxe8+ {[%clk 0:01:56.2]} 27...
Rxe8 {[%clk 0:03:19.3]} 28. Qxe8+ {[%clk 0:01:54.5]} 28... Qxe8 {[%clk
0:03:19.2]} 29. Rxe8+ {[%clk 0:01:52.9]} 29... Kxe8 {[%clk 0:03:19.1]} 30. Be5
{[%clk 0:01:51.9]} 30... Kf7 {[%clk 0:03:17.8]} 31. Kg2 {[%clk 0:01:50]} 31...
Ne3+ {[%clk 0:03:16.4]} 32. Kg3 {[%clk 0:01:45.5]} 32... Nxc2 {[%clk 0:03:16.3]}
33. Kf4 {[%clk 0:01:28.2]} 33... Nb4 {[%clk 0:03:15.1]} 34. Bb8 {[%clk
0:01:18.6]} 34... a6 {[%clk 0:03:13.4]} 35. Ke5 {[%clk 0:01:13.8]} 35... Nxa2
{[%clk 0:03:05.5]} 36. Kd6 {[%clk 0:01:12.3]} 36... Nb4 {[%clk 0:03:03.8]} 37.
Kc7 {[%clk 0:01:10.5]} 37... b5 {[%clk 0:02:59.1]} 38. Kb6 {[%clk 0:01:07.5]}
38... Ke6 {[%clk 0:02:54.1]} 39. Kc5 {[%clk 0:00:58.2]} 39... a5 {[%clk
0:02:48.6]} 40. Kb6 {[%clk 0:00:49.7]} 40... Kd7 {[%clk 0:02:43.5]} 41. Kxa5
{[%clk 0:00:47.7]} 41... Nd3 {[%clk 0:02:42.1]} 42. b3 {[%clk 0:00:39.7]} 42...
Ne1 {[%clk 0:02:38.1]} 43. Be5 {[%clk 0:00:34.7]} 43... Nxf3 {[%clk 0:02:32.5]}
44. Bxg7 {[%clk 0:00:32.7]} 44... Nxh2 {[%clk 0:02:32]} 0-1

[Event "Live Chess"]
[Site "Chess.com"]
[Date "2023.05.20"]
[Round "-"]
[White "BritishIsles"]
[Black "Man-Del-Brot"]
[Result "1-0"]
[WhiteElo "2413"]
[BlackElo "1175"]
[TimeControl "300"]
[EndTime "12:09:24 PDT"]
[Termination "BritishIsles won by resignation"]

1. d4 {[%clk 0:04:56.7]} 1... Nf6 {[%clk 0:04:57.2]} 2. Bg5 {[%clk 0:04:54.9]}
2... Ne4 {[%clk 0:04:55.2]} 3. Bh4 {[%clk 0:04:52.3]} 3... g5 {[%clk 0:04:53.9]}
4. f3 {[%clk 0:04:51]} 4... gxh4 {[%clk 0:04:51.1]} 5. fxe4 {[%clk 0:04:50.9]}
5... e6 {[%clk 0:04:44.5]} 6. Nf3 {[%clk 0:04:46.9]} 6... Be7 {[%clk 0:04:41.5]}
7. e3 {[%clk 0:04:39.9]} 7... a6 {[%clk 0:04:39.3]} 8. Bd3 {[%clk 0:04:37]} 8...
Nc6 {[%clk 0:04:30.3]} 9. O-O {[%clk 0:04:35.4]} 9... Nb4 {[%clk 0:04:28.9]} 10.
Ne5 {[%clk 0:04:31.9]} 10... Nxd3 {[%clk 0:04:25.5]} 11. Nxf7 {[%clk 0:04:27.9]}
11... Rf8 {[%clk 0:04:03.6]} 12. Nxd8 {[%clk 0:04:19.6]} 12... Rxf1+ {[%clk
0:04:01.7]} 13. Qxf1 {[%clk 0:04:18]} 13... d6 {[%clk 0:03:28.4]} 14. cxd3
{[%clk 0:04:07]} 14... Bxd8 {[%clk 0:03:26.7]} 15. Nc3 {[%clk 0:04:05.7]} 15...
Be7 {[%clk 0:03:25.3]} 16. Qf3 {[%clk 0:04:04.4]} 16... b5 {[%clk 0:03:22.6]}
17. e5 {[%clk 0:04:00.7]} 17... Rb8 {[%clk 0:03:16.4]} 18. Qh5+ {[%clk
0:03:58.4]} 18... Kd7 {[%clk 0:03:14]} 19. Qxh7 {[%clk 0:03:57.2]} 19... b4
{[%clk 0:03:05.2]} 20. Ne4 {[%clk 0:03:55.5]} 20... Bb7 {[%clk 0:02:55.9]} 21.
exd6 {[%clk 0:03:51.9]} 21... cxd6 {[%clk 0:02:52.8]} 22. Rc1 {[%clk 0:03:42.7]}
22... Bc6 {[%clk 0:02:47]} 23. Rxc6 {[%clk 0:03:40.2]} 23... Kxc6 {[%clk
0:02:44.9]} 24. Qxe7 {[%clk 0:03:38.6]} 24... Kb5 {[%clk 0:02:36.6]} 25. Qxd6
{[%clk 0:03:32.2]} 25... Rb6 {[%clk 0:02:11.8]} 26. Qc5+ {[%clk 0:03:26.8]} 1-0